fUSD/lending_fUSD_20250208
["ID","MTS","AMOUNT","RATE_DAILY","PERIOD"]
[352236038,1739013073005,-500.0,0.00011408,2]
[352236039,1739013073014,-726.83,0.00011408,2]
[352236040,1739013073024,-500.0,0.00011408,2]
[352236041,1739013073034,-500.0,0.00011408,2]
[352236042,1739013073044,-500.0,0.00011408,2]
[352236043,1739013073053,-369.68845529,0.00011408,2]
[352236044,1739013073063,-500.0,0.00011408,2]
[352236045,1739013073073,-500.0,0.00011408,2]
[352236046,1739013073082,-500.0,0.00011408,2]
[352236047,1739013073092,-500.0,0.00011408,2]
[352236048,1739013073101,-343.97441603,0.00011408,2]
[352236049,1739013073110,-1536.23,0.00011408,2]
[352236050,1739013073120,-500.0,0.00011408,2]
[352236051,1739013073130,-500.0,0.00011408,2]
[352236052,1739013073139,-773.18,0.00011408,2]
[352236053,1739013073148,-500.0,0.00011408,2]
[352236054,1739013073158,-611.63,0.00011408,2]
[352236055,1739013073167,-532.87,0.00011408,2]
[352236056,1739013073177,-500.0,0.00011408,2]
[352236057,1739013073187,-500.0,0.00011408,2]
[352236058,1739013073197,-708.91,0.00011408,2]
[352236059,1739013073206,-500.0,0.00011408,2]
[352236060,1739013073216,-539.40805337,0.00011408,2]
[352236061,1739013073228,-500.0,0.00011408,2]
[352236062,1739013073237,-2071.14,0.00011408,2]
[352236063,1739013073247,-500.0,0.00011408,2]
[352236064,1739013073256,-500.0,0.00011408,2]
[352236065,1739013073265,-818.79,0.00011408,2]
[352236066,1739013073275,-500.0,0.00011408,2]
[352236067,1739013073285,-381.59140244,0.00011408,2]
[352236068,1739013073294,-981.65,0.00011408,2]
[352236069,1739013073303,-500.0,0.00011408,2]
[352236070,1739013073312,-500.0,0.00011408,2]
[352236071,1739013073322,-500.0,0.00011408,2]
[352236072,1739013073332,-500.0,0.00011408,2]
[352236073,1739013073342,-500.0,0.00011408,2]
[352236074,1739013073355,-947.55,0.00011408,2]
[352236075,1739013073364,-500.0,0.00011408,2]
[352236076,1739013073373,-500.0,0.00011408,2]
[352236077,1739013073383,-2250.99,0.00011408,2]
[352236078,1739013073392,-500.0,0.00011408,2]
[352236079,1739013073402,-500.0,0.00011408,2]
[352236080,1739013073412,-500.0,0.00011408,2]
[352236081,1739013073421,-500.0,0.00011408,2]
[352236082,1739013073430,-500.0,0.00011408,2]
[352236083,1739013073440,-500.0,0.00011408,2]
[352236084,1739013073450,-359.53637099,0.00011408,2]
[352236085,1739013073459,-500.0,0.00011408,2]
[352236086,1739013073469,-500.0,0.00011408,2]
[352236087,1739013073478,-500.0,0.00011408,2]
[352236088,1739013073488,-500.0,0.00011408,2]
[352236089,1739013073498,-500.0,0.00011408,2]
[352236090,1739013073508,-500.0,0.00011408,2]
[352236091,1739013073517,-500.0,0.00011408,2]
[352236092,1739013073528,-500.0,0.00011408,2]
[352236093,1739013073537,-500.0,0.00011408,2]
[352236094,1739013073546,-559.06,0.00011408,2]
[352236095,1739013073556,-514.45,0.00011408,2]
[352236096,1739013073565,-500.0,0.00011408,2]
[352236097,1739013073575,-500.0,0.00011408,2]
[352236098,1739013073584,-854.4,0.00011408,2]
[352236099,1739013073594,-500.0,0.00011408,2]
[352236100,1739013073604,-500.0,0.00011408,2]
[352236101,1739013073613,-500.0,0.00011408,2]
[352236102,1739013073623,-153.57588535,0.00011408,2]
[352236103,1739013073633,-502.92960022,0.00011408,2]
[352236104,1739013073643,-500.0,0.00011408,2]
[352236105,1739013073652,-513.19,0.00011408,2]
[352236106,1739013073662,-166.24669048,0.00011408,2]
[352236107,1739013073671,-1032.34,0.00011408,2]
[352236108,1739013073680,-500.0,0.00011408,2]
[352236109,1739013073691,-500.0,0.00011408,2]
[352236110,1739013073700,-500.0,0.00011408,2]
[352236111,1739013073710,-500.0,0.00011408,2]
[352236112,1739013073719,-500.0,0.00011408,2]
[352236113,1739013073728,-500.0,0.00011408,2]
[352236114,1739013073738,-500.0,0.00011408,2]
[352236115,1739013073747,-500.0,0.00011408,2]
[352236116,1739013073756,-1046.28,0.00011408,2]
[352236117,1739013073765,-2383.11,0.00011408,2]
[352236118,1739013073776,-626.31,0.00011408,2]
[352236119,1739013073785,-500.0,0.00011408,2]
[352236120,1739013073794,-500.0,0.00011408,2]
[352236121,1739013073803,-500.0,0.00011408,2]
[352236122,1739013073812,-614.14,0.00011408,2]
[352236123,1739013073821,-966.17,0.00011408,2]
[352236124,1739013073831,-500.0,0.00011408,2]
[352236125,1739013073840,-1038.87,0.00011408,2]
[352236126,1739013073849,-500.0,0.00011408,2]
[352236127,1739013073858,-500.0,0.00011408,2]
[352236128,1739013073867,-503.41889032,0.00011408,2]
[352236129,1739013073877,-500.0,0.00011408,2]
[352236130,1739013073886,-1106.05,0.00011408,2]
[352236131,1739013073896,-500.0,0.00011408,2]
[352236132,1739013073905,-500.0,0.00011408,2]
[352236133,1739013073915,-500.0,0.00011408,2]
[352236134,1739013073925,-503.72249523,0.00011408,2]
[352236135,1739013073934,-500.0,0.00011408,2]
[352236136,1739013073943,-2015.73,0.00011408,2]
[352236137,1739013073953,-500.0,0.00011408,2]
[352236138,1739013073963,-500.0,0.00011408,2]
[352236139,1739013073973,-500.0,0.00011408,2]
[352236140,1739013073982,-500.0,0.00011408,2]
[352236141,1739013073992,-1931.33,0.00011408,2]
[352236142,1739013074005,-500.0,0.00011408,2]
[352236143,1739013074023,-500.0,0.00011408,2]
[352236144,1739013074037,-500.0,0.00011408,2]
[352236145,1739013074055,-500.0,0.00011408,2]
[352236146,1739013074071,-559.49,0.00011408,2]
[352236147,1739013074088,-500.0,0.00011408,2]
[352236148,1739013074102,-500.0,0.00011408,2]
[352236149,1739013074119,-500.0,0.00011408,2]
[352236150,1739013074136,-1077.31,0.00011408,2]
[352236151,1739013074153,-500.0,0.00011408,2]
[352236152,1739013074170,-500.0,0.00011408,2]
[352236153,1739013074186,-500.0,0.00011408,2]
[352236154,1739013074201,-500.0,0.00011408,2]
[352236155,1739013074217,-256.09416321,0.00011408,2]
[352236156,1739013074230,-500.0,0.00011408,2]
[352236157,1739013074244,-932.69,0.00011408,2]
[352236158,1739013074261,-2072.47,0.00011408,2]
[352236159,1739013074273,-2541.69,0.00011408,2]
[352236160,1739013074290,-501.92,0.00011408,2]
[352236161,1739013074302,-500.0,0.00011408,2]
[352236162,1739013074318,-506.44248603,0.00011408,2]
[352236163,1739013074331,-500.0,0.00011408,2]
[352236164,1739013074346,-721.58,0.00011408,2]
[352236165,1739013074363,-761.18,0.00011408,2]
[352236166,1739013074377,-500.0,0.00011408,2]
[352236167,1739013074392,-500.0,0.00011408,2]
[352236168,1739013074406,-500.0,0.00011408,2]
[352236169,1739013074421,-500.0,0.00011408,2]
[352236170,1739013074435,-1724.83,0.00011408,2]
[352236171,1739013074450,-500.0,0.00011408,2]
[352236172,1739013074464,-2030.46,0.00011408,2]
[352236173,1739013074478,-500.0,0.00011408,2]
[352236174,1739013074491,-902.21,0.00011408,2]
[352236175,1739013074506,-500.0,0.00011408,2]
[352236176,1739013074520,-500.0,0.00011408,2]
[352236177,1739013074534,-2636.15,0.00011408,2]
[352236178,1739013074548,-2002.7,0.00011408,2]
[352236179,1739013074563,-500.0,0.00011408,2]
[352236180,1739013074576,-500.0,0.00011408,2]
[352236181,1739013074591,-705.09,0.00011408,2]
[352236182,1739013074604,-500.0,0.00011408,2]
[352236183,1739013074618,-500.0,0.00011408,2]
[352236184,1739013074632,-500.0,0.00011408,2]
[352236185,1739013074645,-506.94756317,0.00011408,2]
[352236186,1739013074659,-2090.85,0.00011408,2]
[352236187,1739013074673,-1600.49,0.00011408,2]
[352236188,1739013074687,-1065.95,0.00011408,2]
[352236189,1739013074700,-2402.98,0.00011408,2]
[352236190,1739013074714,-2859.61,0.00011408,2]
[352236191,1739013074728,-500.0,0.00011408,2]
[352236192,1739013074742,-500.0,0.00011408,2]
[352236193,1739013074756,-500.0,0.00011408,2]
[352236194,1739013074770,-500.0,0.00011408,2]
[352236195,1739013074784,-500.0,0.00011408,2]
[352236196,1739013074799,-2754.41,0.00011408,2]
[352236197,1739013074813,-879.4,0.00011408,2]
[352236198,1739013074827,-2692.97,0.00011408,2]
[352236199,1739013074841,-3004.1,0.00011408,2]
[352236200,1739013074854,-5148.76,0.00011408,2]
[352236201,1739013074868,-500.0,0.00011408,2]
[352236202,1739013074882,-1559.38,0.00011408,2]
[352236203,1739013074896,-500.0,0.00011408,2]
[352236204,1739013074909,-500.0,0.00011408,2]
[352236205,1739013074922,-500.0,0.00011408,2]
[352236206,1739013074937,-2843.08,0.00011408,2]
[352236207,1739013074950,-1375.24,0.00011408,2]
[352236208,1739013074964,-2268.82,0.00011408,2]
[352236209,1739013074978,-500.0,0.00011408,2]
[352236210,1739013074991,-5022.25,0.00011408,2]
[352236211,1739013075005,-500.0,0.00011408,2]
[352236212,1739013075024,-711.21,0.00011408,2]
[352236213,1739013075037,-500.0,0.00011408,2]
[352236214,1739013075051,-1670.67,0.00011408,2]
[352236215,1739013075065,-500.0,0.00011408,2]
[352236216,1739013075079,-15081.68,0.00011408,2]
[352236217,1739013075093,-1399.36,0.00011408,2]
[352236218,1739013075107,-1387.07,0.00011408,2]
[352236219,1739013075121,-500.0,0.00011408,2]
[352236220,1739013075134,-6334.51,0.00011408,2]
[352236221,1739013075148,-567.59,0.00011408,2]
[352236222,1739013075161,-500.0,0.00011408,2]
[352236223,1739013075174,-545.26,0.00011408,2]
[352236224,1739013075187,-500.0,0.00011408,2]
[352236225,1739013075202,-2225.81,0.00011408,2]
[352236226,1739013075216,-3509.06,0.00011408,2]
[352236227,1739013075229,-2285.19,0.00011408,2]
[352236228,1739013075243,-500.0,0.00011408,2]
[352236229,1739013075257,-5176.3,0.00011408,2]
[352236230,1739013075272,-500.0,0.00011408,2]
[352236231,1739013075285,-500.0,0.00011408,2]
[352236232,1739013075301,-679.18,0.00011408,2]
[352236233,1739013075315,-500.0,0.00011408,2]
[352236234,1739013075329,-2222.63,0.00011408,2]
[352236235,1739013075343,-500.0,0.00011408,2]
[352236236,1739013075359,-1424.54,0.00011408,2]
[352236237,1739013075373,-1080.31,0.00011408,2]
[352236238,1739013075387,-500.0,0.00011408,2]
[352236239,1739013075402,-500.0,0.00011408,2]
[352236240,1739013075417,-500.0,0.00011408,2]
[352236241,1739013075432,-3915.69,0.00011408,2]
[352236242,1739013075447,-1682.01,0.00011408,2]
[352236243,1739013075462,-504.42129025,0.00011408,2]
[352236244,1739013075476,-500.0,0.00011408,2]
[352236245,1739013075489,-2047.9,0.00011408,2]
[352236246,1739013075503,-1485.93,0.00011408,2]
[352236247,1739013075517,-6299.13,0.00011408,2]
[352236248,1739013075531,-500.0,0.00011408,2]
[352236249,1739013075545,-500.0,0.00011408,2]
[352236250,1739013075559,-3481.83,0.00011408,2]
[352236251,1739013075573,-4781.03,0.00011408,2]
[352236252,1739013075587,-500.0,0.00011408,2]
[352236253,1739013075600,-500.0,0.00011408,2]
[352236254,1739013075615,-862.73,0.00011408,2]
[352236255,1739013075627,-500.0,0.00011408,2]
[352236256,1739013075641,-151.79094384,0.00011408,2]
[352236257,1739013075655,-883.74,0.00011408,2]
[352236258,1739013075668,-875.14,0.00011408,2]
[352236259,1739013075682,-500.0,0.00011408,2]
[352236260,1739013075695,-743.76,0.00011408,2]
[352236261,1739013075708,-769.04,0.00011408,2]
[352236262,1739013075721,-500.0,0.00011408,2]
[352236263,1739013075734,-500.0,0.00011408,2]
[352236264,1739013075748,-1609.57,0.00011408,2]
[352236265,1739013075762,-500.0,0.00011408,2]
[352236266,1739013075775,-3900.57,0.00011408,2]
[352236267,1739013075789,-328.52220604,0.00011408,2]
[352236268,1739013075803,-2579.73,0.00011408,2]
[352236269,1739013075817,-3578.24,0.00011408,2]
[352236270,1739013075830,-500.0,0.00011408,2]
[352236271,1739013075843,-183.21041715,0.00011408,2]
[352236272,1739013075857,-2832.35,0.00011408,2]
[352236273,1739013075871,-500.0,0.00011408,2]
[352236274,1739013075885,-500.0,0.00011408,2]
[352236275,1739013075898,-3996.35,0.00011408,2]
[352236276,1739013075912,-813.25,0.00011408,2]
[352236277,1739013075925,-6617.64,0.00011408,2]
[352236278,1739013075939,-255.34822096,0.00011408,2]
[352236279,1739013076230,-4921.37,0.00011408,2]
[352236280,1739013076241,-701.82,0.00011408,2]
[352236281,1739013076250,-600.71225623,0.00011408,2]
[352236282,1739013076260,-2017.92,0.00011408,2]
[352236283,1739013076269,-755.0,0.00011408,2]
[352236284,1739013076279,-974.03,0.00011408,2]
[352236285,1739013076288,-1908.71,0.00011408,2]
[352236286,1739013076298,-642.67,0.00011408,2]
[352236287,1739013076308,-500.0,0.00011408,2]
[352236288,1739013076317,-2729.51,0.00011408,2]
[352236289,1739013076326,-500.0,0.00011408,2]
[352236290,1739013076335,-2356.49,0.00011408,2]
[352236291,1739013076345,-4684.81,0.00011408,2]
[352236292,1739013076358,-948.63,0.00011408,2]
[352236293,1739013076367,-3928.31,0.00011408,2]
[352236294,1739013076377,-500.0,0.00011408,2]
[352236295,1739013076387,-1496.66,0.00011408,2]
[352236296,1739013076398,-500.0,0.00011408,2]
[352236297,1739013076408,-500.0,0.00011408,2]
[352236298,1739013076418,-1961.59,0.00011408,2]
[352236299,1739013076428,-848.49,0.00011409,2]
[352236300,1739013076437,-500.0,0.00011409,2]
[352236301,1739013076446,-1128.21,0.00011409,2]
[352236302,1739013076455,-4538.82,0.00011409,2]
[352236303,1739013076465,-500.0,0.00011409,2]
[352236304,1739013076474,-469.45638811,0.0001141,2]
[352236305,1739013076483,-505.30812751,0.0001141,2]
[352236306,1739013076492,-500.0,0.0001141,2]
[352236307,1739013076501,-500.0,0.0001141,2]
[352236308,1739013076510,-500.0,0.0001141,2]
[352236309,1739013076519,-633.17,0.0001141,2]
[352236310,1739013076527,-500.0,0.0001141,2]
[352236311,1739013076537,-500.0,0.0001141,2]
[352236312,1739013076546,-654.42,0.0001141,2]
[352236313,1739013076555,-500.0,0.0001141,2]
[352236314,1739013076564,-500.0,0.0001141,2]
[352236315,1739013076574,-500.0,0.0001141,2]
[352236316,1739013076584,-914.6,0.0001141,2]
[352236317,1739013076594,-500.0,0.0001141,2]
[352236318,1739013076603,-500.0,0.0001141,2]
[352236319,1739013076612,-500.0,0.0001141,2]
[352236320,1739013076621,-922.56,0.0001141,2]
[352236321,1739013076630,-500.0,0.0001141,2]
[352236322,1739013076639,-500.0,0.0001141,2]
[352236323,1739013076648,-500.0,0.0001141,2]
[352236324,1739013076658,-500.0,0.0001141,2]
[352236325,1739013076667,-500.0,0.0001141,2]
[352236326,1739013076676,-500.0,0.0001141,2]
[352236327,1739013076685,-500.0,0.0001141,2]
[352236328,1739013076695,-500.0,0.0001141,2]
[352236329,1739013076703,-637.97,0.0001141,2]
[352236330,1739013076712,-500.0,0.0001141,2]
[352236331,1739013076721,-500.0,0.0001141,2]
[352236332,1739013076730,-500.0,0.0001141,2]
[352236333,1739013076739,-500.0,0.0001141,2]
[352236334,1739013076751,-500.0,0.0001141,2]
[352236335,1739013076759,-500.0,0.0001141,2]
[352236336,1739013076769,-500.0,0.0001141,2]
[352236337,1739013076778,-764.68,0.0001141,2]
[352236338,1739013076788,-500.0,0.0001141,2]
[352236339,1739013076797,-500.0,0.0001141,2]
[352236340,1739013076806,-500.0,0.0001141,2]
[352236341,1739013076815,-500.0,0.0001141,2]
[352236342,1739013076824,-634.37,0.0001141,2]
[352236343,1739013076833,-598.43,0.0001141,2]
[352236344,1739013076842,-500.0,0.0001141,2]
[352236345,1739013076852,-500.0,0.0001141,2]
[352236346,1739013076861,-500.0,0.0001141,2]
[352236347,1739013076869,-500.0,0.0001141,2]
[352236348,1739013076878,-500.0,0.0001141,2]
[352236349,1739013076887,-500.0,0.0001141,2]
[352236350,1739013076896,-500.0,0.0001141,2]
[352236351,1739013076905,-882.42,0.0001141,2]
[352236352,1739013076915,-500.0,0.0001141,2]
[352236353,1739013076924,-500.0,0.0001141,2]
[352236354,1739013076934,-500.0,0.0001141,2]
[352236355,1739013076943,-783.22,0.0001141,2]
[352236356,1739013076952,-514.84150214,0.0001141,2]
[352236357,1739013076961,-503.1,0.0001141,2]
[352236358,1739013076973,-500.0,0.0001141,2]
[352236359,1739013076982,-500.0,0.0001141,2]
[352236360,1739013076992,-500.0,0.0001141,2]
[352236361,1739013077002,-500.0,0.0001141,2]
[352236362,1739013077011,-500.0,0.0001141,2]
[352236363,1739013077021,-500.0,0.0001141,2]
[352236364,1739013077031,-503.48231636,0.0001141,2]
[352236365,1739013077040,-500.0,0.0001141,2]
[352236366,1739013077050,-895.58,0.0001141,2]
[352236367,1739013077059,-500.0,0.0001141,2]
[352236368,1739013077068,-500.0,0.0001141,2]
[352236369,1739013077077,-500.0,0.0001141,2]
[352236370,1739013077086,-500.0,0.0001141,2]
[352236371,1739013077095,-500.0,0.0001141,2]
[352236372,1739013077104,-500.0,0.0001141,2]
[352236373,1739013077113,-500.0,0.0001141,2]
[352236374,1739013077123,-898.09,0.0001141,2]
[352236375,1739013077132,-500.0,0.0001141,2]
[352236376,1739013077142,-600.0,0.0001141,2]
[352236377,1739013077152,-500.0,0.0001141,2]
[352236378,1739013077162,-500.0,0.0001141,2]
[352236379,1739013077172,-239.71159314,0.0001141,2]
[352236380,1739013077182,-500.0,0.0001141,2]
[352236381,1739013077191,-503.35490683,0.0001141,2]
[352236382,1739013077200,-500.0,0.0001141,2]
[352236383,1739013077210,-500.0,0.0001141,2]
[352236384,1739013077219,-500.0,0.0001141,2]
[352236385,1739013077228,-500.0,0.0001141,2]
[352236386,1739013077237,-500.0,0.0001141,2]
[352236387,1739013077246,-500.0,0.0001141,2]
[352236388,1739013077255,-500.0,0.0001141,2]
[352236389,1739013077264,-500.0,0.0001141,2]
[352236390,1739013077273,-500.0,0.0001141,2]
[352236391,1739013077282,-500.0,0.0001141,2]
[352236392,1739013077292,-500.0,0.0001141,2]
[352236393,1739013077301,-503.79,0.0001141,2]
[352236394,1739013077310,-506.77645821,0.0001141,2]
[352236395,1739013077320,-500.0,0.0001141,2]
[352236396,1739013077329,-500.0,0.0001141,2]
[352236397,1739013077340,-500.0,0.0001141,2]
[352236398,1739013077349,-500.0,0.0001141,2]
[352236399,1739013077362,-500.0,0.0001141,2]
[352236400,1739013077371,-282.97836239,0.0001141,2]
[352236401,1739013077380,-500.0,0.0001141,2]
[352236402,1739013077390,-157.54231981,0.0001141,2]
[352236403,1739013077401,-500.0,0.0001141,2]
[352236404,1739013077410,-500.0,0.0001141,2]
[352236405,1739013077419,-500.0,0.0001141,2]
[352236406,1739013077430,-500.0,0.0001141,2]
[352236407,1739013077440,-500.0,0.0001141,2]
[352236408,1739013077449,-651.32,0.0001141,2]
[352236409,1739013077459,-711.88,0.0001141,2]
[352236410,1739013077468,-526.52,0.0001141,2]
[352236411,1739013077477,-500.0,0.0001141,2]
[352236412,1739013077486,-500.0,0.0001141,2]
[352236413,1739013077495,-946.77,0.0001141,2]
[352236414,1739013077505,-1188.28,0.0001141,2]
[352236415,1739013077514,-500.0,0.0001141,2]
[352236416,1739013077525,-500.0,0.0001141,2]
[352236417,1739013077534,-891.2,0.0001141,2]
[352236418,1739013077543,-500.0,0.0001141,2]
[352236419,1739013077552,-500.0,0.0001141,2]
[352236420,1739013077562,-500.0,0.0001141,2]
[352236421,1739013077571,-500.0,0.0001141,2]
[352236422,1739013077581,-500.0,0.0001141,2]
[352236423,1739013077590,-504.27343023,0.0001141,2]
[352236424,1739013077599,-500.0,0.0001141,2]
[352236425,1739013077608,-1073.14,0.0001141,2]
[352236426,1739013077618,-500.0,0.0001141,2]
[352236427,1739013077628,-500.0,0.0001141,2]
[352236428,1739013077637,-500.0,0.0001141,2]
[352236429,1739013077647,-621.38,0.0001141,2]
[352236430,1739013077656,-405.56566451,0.0001141,2]
[352236431,1739013077665,-500.0,0.0001141,2]
[352236432,1739013077675,-267.51968928,0.0001141,2]
[352236433,1739013077684,-500.0,0.0001141,2]
[352236434,1739013077693,-500.0,0.0001141,2]
[352236435,1739013077703,-602.2,0.0001141,2]
[352236436,1739013077712,-500.0,0.0001141,2]
[352236437,1739013077721,-502.46,0.0001141,2]
[352236438,1739013077731,-501.61542678,0.0001141,2]
[352236439,1739013077740,-1923.99,0.0001141,2]
[352236440,1739013077750,-500.0,0.0001141,2]
[352236441,1739013077759,-500.0,0.0001141,2]
[352236442,1739013077770,-1042.08,0.0001141,2]
[352236443,1739013077779,-500.0,0.0001141,2]
[352236444,1739013077788,-500.0,0.0001141,2]
[352236445,1739013077797,-753.74,0.0001141,2]
[352236446,1739013077806,-500.0,0.0001141,2]
[352236447,1739013077815,-721.0,0.0001141,2]
[352236448,1739013077824,-500.0,0.0001141,2]
[352236449,1739013077832,-604.54,0.0001141,2]
[352236450,1739013077841,-603.14,0.0001141,2]
[352236451,1739013077851,-860.81,0.0001141,2]
[352236452,1739013077862,-890.4,0.0001141,2]
[352236453,1739013077873,-931.55,0.0001141,2]
[352236454,1739013077882,-1239.47,0.0001141,2]
[352236455,1739013077892,-2019.59,0.0001141,2]
[352236456,1739013077901,-500.0,0.0001141,2]
[352236457,1739013077911,-755.49,0.0001141,2]
[352236458,1739013077922,-500.0,0.0001141,2]
[352236459,1739013077931,-837.9,0.0001141,2]
[352236460,1739013077940,-500.0,0.0001141,2]
[352236461,1739013077949,-500.0,0.0001141,2]
[352236462,1739013077958,-500.0,0.0001141,2]
[352236463,1739013077968,-572.48,0.0001141,2]
[352236464,1739013077977,-500.0,0.0001141,2]
[352236465,1739013077987,-1033.35,0.0001141,2]
[352236466,1739013077998,-500.0,0.0001141,2]
[352236467,1739013078007,-500.0,0.0001141,2]
[352236468,1739013078016,-500.0,0.0001141,2]
[352236469,1739013078026,-2008.9,0.0001141,2]
[352236470,1739013078035,-500.0,0.0001141,2]
[352236471,1739013078044,-500.0,0.0001141,2]
[352236472,1739013078054,-500.0,0.0001141,2]
[352236473,1739013078063,-500.0,0.0001141,2]
[352236474,1739013078072,-696.95,0.0001141,2]
[352236475,1739013078081,-723.92,0.0001141,2]
[352236476,1739013078090,-500.0,0.0001141,2]
[352236477,1739013078100,-500.0,0.0001141,2]
[352236478,1739013078110,-504.96,0.0001141,2]
[352236479,1739013078119,-2033.67,0.0001141,2]
[352236480,1739013078129,-500.0,0.0001141,2]
[352236481,1739013078138,-500.0,0.0001141,2]
[352236482,1739013078147,-500.0,0.0001141,2]
[352236483,1739013078156,-500.0,0.0001141,2]
[352236484,1739013078166,-2296.52,0.0001141,2]
[352236485,1739013078175,-500.0,0.0001141,2]
[352236486,1739013078184,-500.0,0.0001141,2]
[352236487,1739013078194,-1085.81,0.0001141,2]
[352236488,1739013078203,-500.0,0.0001141,2]
[352236489,1739013078214,-500.0,0.0001141,2]
[352236490,1739013078223,-500.0,0.0001141,2]
[352236491,1739013078232,-929.17,0.0001141,2]
[352236492,1739013078241,-500.0,0.0001141,2]
[352236493,1739013078251,-727.02,0.0001141,2]
[352236494,1739013078260,-991.68,0.0001141,2]
[352236495,1739013078271,-500.0,0.0001141,2]
[352236496,1739013078280,-500.0,0.0001141,2]
[352236497,1739013078290,-500.0,0.0001141,2]
[352236498,1739013078299,-500.0,0.0001141,2]
[352236499,1739013078309,-500.0,0.0001141,2]
[352236500,1739013078318,-506.62018164,0.0001141,2]
[352236501,1739013078328,-500.56,0.0001141,2]
[352236502,1739013078337,-775.33,0.0001141,2]
[352236503,1739013078349,-500.0,0.0001141,2]
[352236504,1739013078361,-500.0,0.0001141,2]
[352236505,1739013078371,-746.97,0.0001141,2]
[352236506,1739013078380,-1543.04,0.0001141,2]
[352236507,1739013078391,-500.0,0.0001141,2]
[352236508,1739013078400,-500.0,0.0001141,2]
[352236509,1739013078409,-987.5,0.0001141,2]
[352236510,1739013078419,-500.0,0.0001141,2]
[352236511,1739013078429,-500.0,0.0001141,2]
[352236512,1739013078438,-500.0,0.0001141,2]
[352236513,1739013078449,-500.0,0.0001141,2]
[352236514,1739013078458,-500.0,0.0001141,2]
[352236515,1739013078467,-2244.47,0.0001141,2]
[352236516,1739013078476,-500.0,0.0001141,2]
[352236517,1739013078486,-850.11,0.0001141,2]
[352236518,1739013078496,-500.0,0.0001141,2]
[352236519,1739013078505,-500.0,0.0001141,2]
[352236520,1739013078514,-738.4,0.0001141,2]
[352236521,1739013078524,-500.0,0.0001141,2]
[352236522,1739013078534,-2170.82,0.0001141,2]
[352236523,1739013078543,-883.23,0.0001141,2]
[352236524,1739013078552,-500.0,0.0001141,2]
[352236525,1739013078561,-500.0,0.0001141,2]
[352236526,1739013078571,-500.0,0.0001141,2]
[352236527,1739013078581,-500.0,0.0001141,2]
[352236528,1739013078591,-1022.79,0.0001141,2]
[352236529,1739013078600,-500.0,0.0001141,2]
[352236530,1739013078610,-647.57815439,0.0001141,2]
[352236531,1739013078620,-500.0,0.0001141,2]
[352236532,1739013078629,-500.0,0.0001141,2]
[352236533,1739013078638,-500.0,0.0001141,2]
[352236534,1739013078647,-500.0,0.0001141,2]
[352236535,1739013078656,-1744.67,0.0001141,2]
[352236536,1739013078665,-500.0,0.0001141,2]
[352236537,1739013078674,-815.19,0.0001141,2]